bitfinex-derivatives/quotes_BTCF0:USTF0_20250926
["timestamp","ask_amount","ask_price","bid_price","bid_amount"]
[1758849593598,0.01981,109750.0,109740.0,1.40746545]
[1758849593791,0.0325,109750.0,109740.0,1.04891621]
[1758849593990,0.0325,109750.0,109740.0,1.40746545]
[1758849594396,0.1235493,109750.0,109740.0,1.31640785]
[1758849594602,0.1457293,109750.0,109740.0,0.91640785]
[1758849595102,0.1457293,109750.0,109740.0,0.55785861]
[1758849595308,0.1457293,109750.0,109740.0,0.91640785]
[1758849596000,0.05468,109750.0,109740.0,0.91640785]
[1758849596199,0.1457293,109750.0,109740.0,0.91640785]
[1758849596408,0.1497293,109750.0,109740.0,0.91640785]
[1758849596606,0.5497293,109750.0,109740.0,0.82529583]
[1758849596907,0.5497293,109750.0,109740.0,0.74337924]
[1758849597507,0.5497293,109750.0,109740.0,0.46578872]
[1758849597715,0.5497293,109750.0,109740.0,0.44275872]
[1758849598012,0.45868,109750.0,109740.0,0.55423556]
[1758849598514,0.45868,109750.0,109740.0,1.01343588]
[1758849598515,0.02381,109750.0,109740.0,1.01343588]
[1758849598810,0.02381,109750.0,109740.0,1.84999716]
[1758849599004,0.02381,109750.0,109740.0,2.68494772]
[1758849599712,0.01981,109750.0,109740.0,2.68494772]
[1758849599908,0.09779,109770.0,109760.0,0.113711]
[1758849600215,0.09779,109770.0,109760.0,0.83306024]
[1758849600511,0.09779,109770.0,109760.0,0.92418056]
[1758849600807,0.14812,109770.0,109760.0,0.92418056]
[1758849601011,0.239153,109770.0,109760.0,0.83313956]
[1758849601312,0.239153,109770.0,109760.0,0.91406791]
[1758849601509,0.239153,109770.0,109760.0,0.55551867]
[1758849601711,0.05033,109770.0,109760.0,1.07652419]
[1758849601913,0.06923,109770.0,109760.0,1.07652419]
[1758849602707,0.06923,109770.0,109760.0,0.98548289]
[1758849602911,0.09141,109770.0,109760.0,0.98548289]
[1758849603508,1.82435224,109770.0,109760.0,0.08092835]
[1758849604212,0.1268713,109760.0,109750.0,0.82294759]
[1758849604716,0.1268713,109760.0,109750.0,0.17203207]
[1758849604911,1.24622054,109760.0,109750.0,0.08092835]
[1758849605111,0.1268796,109750.0,109740.0,0.10412835]
[1758849605612,1.0094796,109750.0,109740.0,0.17204037]
[1758849605916,1.0094796,109750.0,109740.0,0.08092835]
[1758849606511,0.1268879,109740.0,109730.0,0.8324711]
[1758849607015,0.1268879,109740.0,109730.0,0.92359142]
[1758849607219,0.1268879,109740.0,109730.0,0.91459791]
[1758849607405,0.1268879,109740.0,109730.0,0.46492835]
[1758849607607,0.1268879,109740.0,109730.0,0.08092835]
[1758849608012,1.25545522,109740.0,109730.0,0.08092835]
[1758849608316,0.1268963,109730.0,109720.0,0.46492835]
[1758849608511,1.0099763,109730.0,109720.0,0.08092835]
[1758849609412,1.0099763,109730.0,109720.0,0.005]
[1758849610218,1.4089763,109730.0,109720.0,0.005]
[1758849610722,1.7697763,109730.0,109720.0,0.06971503]
[1758849611114,1.7697763,109730.0,109720.0,0.07171503]
[1758849611115,2.10391357,109730.0,109720.0,0.07171503]
[1758849611421,2.10391357,109730.0,109720.0,0.007]
[1758849611717,1.7697763,109730.0,109720.0,0.007]
[1758849612815,0.0910829,109710.0,109700.0,0.06471503]
[1758849613020,0.1269212,109700.0,109690.0,0.53883044]
[1758849613215,0.03583,109700.0,109690.0,0.5479533]
[1758849613420,0.03583,109700.0,109690.0,0.64926138]
[1758849613619,0.91731,109700.0,109690.0,0.64926138]
[1758849614016,0.90031,109700.0,109690.0,0.64926138]
[1758849614218,0.89531,109700.0,109690.0,0.66244138]
[1758849614527,0.89531,109700.0,109690.0,0.99657865]
[1758849614821,0.01261,109710.0,109700.0,0.1274712]
[1758849614822,0.02322,109710.0,109700.0,0.1274712]
[1758849615017,0.9049,109710.0,109700.0,0.88700223]
[1758849615619,0.1036848,109720.0,109700.0,0.97816408]
[1758849615814,0.03583,109720.0,109710.0,0.53967666]
[1758849616010,0.90659,109720.0,109710.0,0.53967666]
[1758849616417,0.03583,109720.0,109710.0,0.55285666]
[1758849616623,0.39663,109730.0,109720.0,0.03638]
[1758849616829,0.91687,109730.0,109720.0,0.4882546]
[1758849617016,0.91687,109730.0,109720.0,0.55284836]
[1758849618018,0.90426,109730.0,109720.0,0.55284836]
[1758849618219,0.90826,109730.0,109720.0,0.55284836]
[1758849618618,0.004,109730.0,109720.0,1.3135288]
[1758849619123,0.033,109730.0,109720.0,1.3135288]
[1758849619554,0.033,109730.0,109720.0,2.1942088]
[1758849619725,0.029,109730.0,109720.0,2.27513715]
[1758849619916,0.031,109730.0,109720.0,2.27513715]
[1758849620830,0.029,109730.0,109720.0,2.27513715]
[1758849621126,0.04422,109730.0,109720.0,0.66031988]
[1758849622327,0.021,109730.0,109720.0,0.66031988]
[1758849622527,0.021,109730.0,109720.0,0.99445715]
[1758849622729,0.04422,109730.0,109720.0,0.99445715]
[1758849623027,0.04422,109730.0,109720.0,0.99545715]
[1758849623425,0.04522,109730.0,109720.0,0.99545715]
[1758849623729,0.09562,109730.0,109720.0,0.99545715]
[1758849624229,0.0724,109730.0,109720.0,1.39545715]
[1758849626225,0.0624,109730.0,109720.0,1.39545715]
[1758849628124,0.0624,109730.0,109720.0,1.06131988]
[1758849628329,0.0624,109730.0,109720.0,1.39545715]
[1758849628732,0.55655163,109770.0,109760.0,0.0910419]
[1758849628733,0.4872364,109770.0,109760.0,0.0910419]
[1758849629036,1.2766,109770.0,109760.0,0.17656565]
[1758849629730,0.9158,109770.0,109760.0,0.53736565]
[1758849629922,1.0418336,109770.0,109760.0,0.53736565]
[1758849630124,1.0468336,109770.0,109760.0,0.44632375]
[1758849630729,1.0468336,109770.0,109760.0,0.4728519]
[1758849630934,1.0108336,109770.0,109760.0,0.4728519]
[1758849631122,1.0398336,109770.0,109760.0,0.4728519]
[1758849631327,1.0398336,109770.0,109760.0,0.53736565]
[1758849631730,0.9488,109770.0,109760.0,0.53736565]
[1758849632937,0.9488,109770.0,109760.0,0.4728519]
[1758849633235,0.9488,109770.0,109760.0,0.48207877]
[1758849633427,0.9488,109770.0,109760.0,0.54659252]
[1758849633937,1.0398337,109770.0,109760.0,0.4728519]
[1758849634636,0.1276919,109760.0,109750.0,0.52559698]
[1758849634831,0.1276919,109760.0,109750.0,0.51635915]
[1758849635136,0.5276919,109760.0,109750.0,0.54670555]
[1758849635437,0.43665,109760.0,109750.0,0.54670555]
[1758849635634,0.03665,109760.0,109750.0,0.54670555]
[1758849636149,0.05065,109760.0,109750.0,0.53736915]
[1758849637548,0.05265,109760.0,109750.0,0.53736915]
[1758849638252,0.5436919,109760.0,109750.0,0.4728554]
[1758849638641,0.45265,109760.0,109750.0,0.4728554]
[1758849639551,0.05265,109760.0,109750.0,0.53736915]
[1758849640356,0.1436919,109760.0,109750.0,0.53736915]
[1758849640646,0.1436919,109760.0,109750.0,0.06451375]
[1758849640647,1.23862917,109760.0,109750.0,0.06451375]
[1758849640849,0.1277002,109750.0,109740.0,0.53738293]
[1758849641048,1.0041002,109750.0,109740.0,0.53738293]
[1758849641648,1.0041002,109750.0,109740.0,0.42531463]
[1758849641850,1.0041002,109750.0,109740.0,0.06451463]
[1758849642049,1.0041002,109750.0,109740.0,0.08552463]
[1758849642459,1.4041002,109750.0,109740.0,0.08552463]
[1758849642749,1.4041002,109750.0,109740.0,0.06451463]
[1758849642954,1.7729002,109750.0,109740.0,0.06451463]
[1758849643155,1.7729002,109750.0,109740.0,0.08552463]
[1758849643747,1.7739002,109750.0,109740.0,0.06451463]
[1758849643955,1.7739002,109750.0,109730.0,0.06451463]
[1758849643956,0.1277085,109740.0,109730.0,0.06451463]
[1758849644160,0.1277168,109730.0,109720.0,0.06451463]
[1758849644359,1.37292312,109730.0,109720.0,0.06451463]
[1758849644765,0.1277251,109720.0,109710.0,0.53740803]
[1758849645448,0.03665,109720.0,109710.0,0.53740803]
[1758849646472,0.1277252,109720.0,109710.0,0.53740803]
[1758849646651,0.1277252,109720.0,109710.0,0.44632463]
[1758849646852,0.1297252,109720.0,109710.0,0.44632463]
[1758849647056,0.1297252,109720.0,109710.0,0.44732463]
[1758849647560,0.55022394,109720.0,109710.0,0.06551463]
[1758849647958,0.95022394,109720.0,109710.0,0.06551463]
[1758849648155,0.5297252,109720.0,109710.0,0.06551463]
[1758849649053,0.43865,109720.0,109710.0,0.17760813]
[1758849649250,0.90007,109720.0,109710.0,0.19086813]
[1758849649457,0.91393,109720.0,109710.0,0.61136687]
[1758849649658,0.90007,109720.0,109710.0,0.19086813]
[1758849650254,0.90007,109720.0,109710.0,0.61136687]
[1758849650460,0.90007,109720.0,109710.0,1.0633121]
[1758849650659,0.90011,109720.0,109710.0,1.0633121]
[1758849651756,0.9911852,109720.0,109710.0,1.0633121]
[1758849651956,0.9911852,109720.0,109710.0,0.62955336]
[1758849651957,1.0050452,109720.0,109710.0,0.62955336]
[1758849652665,1.0050452,109720.0,109710.0,0.89869206]
[1758849652861,1.2741839,109720.0,109710.0,0.89869206]
[1758849653058,0.90011,109720.0,109710.0,0.91195206]
[1758849653770,0.002,109720.0,109710.0,1.58109076]
[1758849653957,0.87736,109720.0,109710.0,1.58109076]
[1758849654262,0.002,109720.0,109710.0,1.58109076]
[1758849654561,0.002,109720.0,109710.0,1.59721831]
[1758849655364,0.002,109720.0,109710.0,2.47257831]
[1758849656657,0.02147,109750.0,109740.0,0.662746]
[1758849656856,0.89683,109750.0,109740.0,1.08804261]
[1758849657061,1.270309,109750.0,109740.0,0.44691661]
[1758849657262,1.670309,109750.0,109740.0,0.15561693]
[1758849657558,1.670309,109750.0,109730.0,0.44144218]
[1758849657559,0.02147,109740.0,109730.0,0.55111321]
[1758849657763,0.91012,109750.0,109740.0,0.1247386]
[1758849657957,0.93012,109750.0,109740.0,0.81917304]
[1758849658263,0.93412,109750.0,109740.0,0.80711304]
[1758849658563,0.92083,109750.0,109740.0,1.17944036]
[1758849658758,0.92083,109750.0,109740.0,1.25188099]
[1758849659762,0.91283,109750.0,109740.0,1.25188099]
[1758849659966,1.0171703,109750.0,109740.0,0.80718306]
[1758849660166,1.0151703,109750.0,109740.0,0.89824166]
[1758849660358,1.0151703,109750.0,109740.0,0.90743771]
[1758849661063,0.92412,109750.0,109740.0,0.90743771]
[1758849661365,1.0151703,109750.0,109740.0,0.83374592]
[1758849661561,1.284309,109750.0,109740.0,0.80719231]
[1758849661760,1.284309,109750.0,109740.0,0.89825091]
[1758849662064,0.92412,109750.0,109740.0,0.89825091]
[1758849662256,0.92412,109750.0,109740.0,0.96956964]
[1758849662660,0.92412,109750.0,109740.0,0.97872096]
[1758849662966,0.92412,109750.0,109740.0,1.24785966]
[1758849663357,0.92404,109750.0,109740.0,1.24785966]
[1758849664263,0.92404,109750.0,109740.0,1.25991966]
[1758849665264,0.014,109750.0,109740.0,1.25991966]
[1758849665466,0.014,109750.0,109740.0,1.86455337]
[1758849665658,0.014,109750.0,109740.0,2.55133685]
[1758849666668,0.013,109750.0,109740.0,2.55133685]
[1758849666969,0.008,109750.0,109740.0,2.55133685]
[1758849667673,0.008,109750.0,109740.0,1.67605685]
[1758849667866,0.008,109750.0,109740.0,2.54214553]
[1758849668863,0.008,109750.0,109740.0,2.55118815]
[1758849670965,0.008,109750.0,109740.0,2.47054597]
[1758849672479,0.008,109750.0,109740.0,2.73968467]
[1758849672676,0.008,109750.0,109740.0,2.80421323]
[1758849673284,0.008,109750.0,109740.0,2.73968467]
[1758849673473,0.008,109750.0,109740.0,2.53506805]
[1758849674476,0.008,109750.0,109740.0,2.47054597]
[1758849679085,0.008,109750.0,109740.0,1.93226857]
[1758849679286,0.02071,109750.0,109740.0,1.59530597]
[1758849679478,0.02071,109750.0,109740.0,2.47038597]
[1758849679675,0.008,109750.0,109740.0,2.47038597]
[1758849680889,0.008,109750.0,109740.0,2.73952467]
[1758849681386,0.008,109750.0,109740.0,2.47038597]
[1758849682085,0.008,109750.0,109740.0,2.55102815]
[1758849682280,0.008,109750.0,109740.0,2.82016685]
[1758849683288,0.008,109750.0,109740.0,2.73952467]
[1758849685288,0.1281044,109770.0,109760.0,0.02149]
[1758849685591,0.1281044,109770.0,109760.0,0.9205674]
[1758849685886,0.1281044,109770.0,109760.0,0.38229]
[1758849686093,0.1279624,109760.0,109750.0,0.44702871]
[1758849686278,0.1279624,109760.0,109750.0,0.71616741]
[1758849686482,0.1279624,109760.0,109750.0,0.89832183]
[1758849686890,0.1279624,109760.0,109750.0,0.80727113]
[1758849687186,0.1279624,109760.0,109750.0,0.89832183]
[1758849688692,0.1409624,109760.0,109750.0,0.89832183]
[1758849688892,0.1409624,109760.0,109750.0,0.62918313]
[1758849689093,0.1409624,109760.0,109750.0,0.89832183]
[1758849689293,0.1419624,109760.0,109750.0,0.89832183]
[1758849689898,0.1419624,109760.0,109750.0,0.80727113]
[1758849690194,0.5419624,109760.0,109750.0,0.44647113]
[1758849690389,0.5419624,109760.0,109750.0,0.89832183]
[1758849691696,0.5419624,109760.0,109750.0,0.80727113]
[1758849691995,0.5419624,109760.0,109750.0,0.44647113]
[1758849691996,0.9027624,109760.0,109750.0,0.44647113]
[1758849692303,0.9027624,109760.0,109730.0,0.76474647]
[1758849692304,0.127979,109740.0,109730.0,0.76474647]
[1758849692590,1.2719577,109740.0,109730.0,0.48499625]
[1758849692794,1.9410964,109740.0,109730.0,0.08104978]
[1758849693001,2.3018964,109740.0,109720.0,0.82430625]
[1758849693190,0.397126,109730.0,109720.0,0.2691387]
[1758849693387,0.397126,109730.0,109720.0,0.42507723]
[1758849693586,0.397126,109730.0,109720.0,0.44656723]
[1758849694011,0.797126,109730.0,109720.0,0.35543861]
[1758849694600,0.796126,109730.0,109720.0,0.35543861]
[1758849695198,0.796126,109730.0,109720.0,0.06480991]
[1758849695399,1.156926,109730.0,109720.0,0.06480991]
[1758849695901,1.157926,109730.0,109720.0,0.33894861]
[1758849696202,1.157926,109730.0,109720.0,0.06975985]
[1758849696402,1.164926,109730.0,109720.0,0.06475985]
[1758849696811,1.0097873,109730.0,109720.0,0.72828285]
[1758849696999,1.0097873,109730.0,109720.0,0.08624985]
[1758849697203,1.3705873,109730.0,109720.0,0.35538855]
[1758849697701,1.639726,109730.0,109720.0,0.35538855]
[1758849699314,1.639726,109730.0,109720.0,0.08624985]
[1758849699499,2.039726,109730.0,109720.0,0.33389855]
[1758849699695,2.039766,109730.0,109720.0,0.06475985]
[1758849699907,2.039766,109730.0,109720.0,0.33389855]
[1758849700220,0.1279955,109720.0,109710.0,0.52107679]
[1758849700508,0.02321,109720.0,109710.0,0.98511622]
[1758849701206,0.02321,109720.0,109710.0,0.98611622]
[1758849701505,0.02421,109720.0,109710.0,0.98611622]
[1758849701695,0.1152856,109720.0,109710.0,0.98611622]
[1758849702204,0.87584,109720.0,109710.0,1.25525492]
[1758849702509,0.001,109720.0,109710.0,1.59049507]
[1758849702896,0.001,109720.0,109710.0,1.67154485]
[1758849703700,0.001,109720.0,109710.0,2.54634485]
[1758849703905,0.17764,109740.0,109730.0,0.1036328]
[1758849704102,0.17764,109740.0,109730.0,0.81973503]
[1758849704330,0.20085,109740.0,109730.0,0.81973503]
[1758849704508,0.305619,109740.0,109730.0,0.80724746]
[1758849705008,0.307619,109740.0,109730.0,0.80724746]
[1758849705210,0.319619,109740.0,109730.0,0.89831476]
[1758849706411,0.319619,109740.0,109730.0,0.91088476]
[1758849706412,0.19164,109740.0,109730.0,0.91088476]
[1758849706608,0.014,109740.0,109730.0,0.91088476]
[1758849706805,0.88876,109740.0,109730.0,0.91088476]
[1758849707001,0.91197,109740.0,109730.0,0.91088476]
[1758849707205,0.92568,109740.0,109730.0,0.91088476]
[1758849707410,0.92568,109740.0,109730.0,0.89831476]
[1758849707610,0.91193,109740.0,109730.0,0.91088476]
[1758849708713,0.91193,109740.0,109730.0,1.0003959]
[1758849711022,1.016699,109740.0,109730.0,0.62917606]
[1758849711320,1.016699,109740.0,109730.0,0.9878259]
[1758849712021,1.016699,109740.0,109730.0,0.62917606]
[1758849712313,1.016699,109740.0,109730.0,0.53810876]
[1758849712506,1.416699,109740.0,109730.0,0.60768596]
[1758849712708,1.416699,109740.0,109730.0,0.62917596]
[1758849713218,1.416699,109740.0,109730.0,0.9878258]
[1758849713626,1.416699,109740.0,109730.0,0.62917596]
[1758849713816,1.416699,109740.0,109730.0,0.9878258]
[1758849714418,1.416699,109740.0,109730.0,0.51661876]
[1758849714813,1.416699,109740.0,109730.0,0.17737876]
[1758849715313,1.416699,109740.0,109730.0,0.15581876]
[1758849717419,1.416699,109740.0,109730.0,0.09114523]
[1758849717618,0.1277273,109730.0,109720.0,0.16740638]
[1758849717819,0.1277356,109720.0,109710.0,0.83209154]
[1758849718019,1.0022156,109720.0,109710.0,0.91314132]
[1758849718217,1.0022156,109720.0,109710.0,1.00428655]
[1758849718421,0.91114,109720.0,109710.0,1.01696655]
[1758849718723,0.91114,109720.0,109710.0,0.93591677]
[1758849718925,0.87448,109720.0,109710.0,0.93591677]
[1758849719219,0.002,109730.0,109720.0,0.1252656]
[1758849719422,0.87644,109730.0,109720.0,0.84471544]
[1758849719623,0.89941,109730.0,109720.0,0.84471544]
[1758849719835,0.89941,109730.0,109720.0,0.93586067]
[1758849720119,0.87644,109730.0,109720.0,0.93586067]
[1758849720515,0.002,109730.0,109720.0,1.34386067]
[1758849720722,0.002,109730.0,109720.0,1.42488085]
[1758849720918,0.002,109730.0,109720.0,1.78353069]
[1758849721118,0.002,109730.0,109720.0,1.34886067]
[1758849721323,0.89741,109740.0,109730.0,0.1251973]
[1758849721520,0.89741,109740.0,109730.0,0.92571975]
[1758849722026,0.89741,109740.0,109730.0,1.01685668]
[1758849722223,0.988469,109740.0,109730.0,0.92578938]
[1758849722527,0.965499,109740.0,109730.0,1.01685668]
[1758849722921,0.967499,109740.0,109730.0,1.01685668]
[1758849723116,0.981189,109740.0,109730.0,0.91321938]
[1758849723322,0.981189,109740.0,109730.0,0.19376954]
[1758849723323,1.004159,109740.0,109730.0,0.19376954]
[1758849723524,1.36280884,109740.0,109730.0,0.17220954]
[1758849723715,1.36280884,109740.0,109730.0,0.09113693]
[1758849724432,1.36280884,109740.0,109730.0,0.09213693]
[1758849724726,1.36280884,109740.0,109730.0,0.11369693]
[1758849725530,1.004159,109740.0,109730.0,0.11369693]
[1758849726731,1.004159,109740.0,109730.0,0.0648872]
[1758849726732,2.12360884,109740.0,109730.0,0.0648872]
[1758849726923,0.1271373,109730.0,109720.0,0.0012983]
[1758849727123,0.1139422,109700.0,109690.0,0.46797564]
[1758849727323,1.36005204,109700.0,109690.0,0.49553664]
[1758849727533,1.36005204,109700.0,109690.0,0.09112862]
[1758849727725,1.36005204,109700.0,109680.0,0.48668777]
[1758849727927,1.36005204,109700.0,109690.0,0.02197]
[1758849728125,1.0014022,109700.0,109690.0,0.02197]
[1758849728527,1.0014022,109700.0,109690.0,0.02597]
[1758849728921,0.02285,109700.0,109690.0,0.39989]
[1758849729123,0.1139354,109710.0,109700.0,0.03509]
[1758849729329,0.37402,109720.0,109710.0,0.03509]
[1758849729330,0.4747314,109720.0,109710.0,0.03509]
[1758849729524,1.3489714,109720.0,109710.0,0.03509]
[1758849729731,1.3621914,109720.0,109710.0,0.03509]
[1758849730234,1.3621914,109720.0,109710.0,0.02197]
[1758849731032,0.1139339,109710.0,109700.0,0.03509]
[1758849731237,0.4747339,109710.0,109700.0,0.03509]
[1758849731933,0.8879539,109710.0,109700.0,0.02197]
[1758849732135,0.1139422,109700.0,109690.0,0.1261905]
[1758849732339,0.89705,109700.0,109690.0,0.4869905]
[1758849732643,0.02585,109710.0,109700.0,0.1261822]
[1758849732942,0.90009,109710.0,109700.0,0.1261822]
[1758849733337,0.90009,109710.0,109700.0,0.4869822]
[1758849733534,1.0061739,109710.0,109700.0,0.4869822]
[1758849733836,0.03785,109710.0,109700.0,0.1261822]
[1758849734038,0.91205,109710.0,109700.0,0.4869822]
[1758849734236,0.91205,109710.0,109700.0,0.1261822]
[1758849734237,1.0031339,109710.0,109700.0,0.1261822]
[1758849734441,1.0031339,109710.0,109700.0,0.4869822]
[1758849735238,0.91205,109710.0,109700.0,0.4869822]
[1758849735434,0.91505,109710.0,109700.0,0.4869822]
[1758849735934,0.91505,109710.0,109700.0,0.39589]
[1758849735935,1.0061739,109710.0,109700.0,0.39589]
[1758849736245,0.1319339,109710.0,109700.0,0.39589]
[1758849736631,1.0061339,109710.0,109700.0,0.39589]
[1758849737140,1.0061339,109710.0,109700.0,0.46071229]
[1758849737376,0.91505,109710.0,109700.0,0.55180449]
[1758849738541,0.91505,109710.0,109700.0,0.46071229]
[1758849738542,1.0173539,109710.0,109700.0,0.46071229]
[1758849738932,1.4173539,109710.0,109700.0,0.44759229]
[1758849739543,1.4041339,109710.0,109700.0,0.46071229]
[1758849739840,1.0041339,109710.0,109700.0,0.55180449]
[1758849740042,0.9981339,109710.0,109700.0,0.55180449]
[1758849740945,0.1371539,109710.0,109700.0,0.44759229]
[1758849741135,1.0113139,109710.0,109700.0,0.44759229]
[1758849741439,1.7721139,109710.0,109700.0,0.06482229]
[1758849741640,0.1271622,109700.0,109690.0,0.46071229]
[1758849742146,0.02285,109700.0,109690.0,0.64296633]
[1758849742447,0.02285,109700.0,109690.0,1.37726177]
[1758849742940,0.89693,109700.0,109690.0,1.04296633]
[1758849743142,0.89993,109700.0,109690.0,1.04296633]
[1758849743434,0.87704,109700.0,109690.0,0.97814404]
[1758849743637,0.89989,109700.0,109690.0,0.57814404]
[1758849744441,0.89989,109700.0,109690.0,0.97725391]
[1758849744842,0.87704,109700.0,109690.0,1.37725391]
[1758849745344,0.87704,109700.0,109690.0,1.31243948]
[1758849748758,0.87704,109700.0,109690.0,1.33703922]
[1758849748948,0.003,109700.0,109690.0,1.33703922]
[1758849749146,0.58912,109700.0,109690.0,1.33703922]
[1758849749344,0.58912,109700.0,109690.0,1.41807553]
[1758849750444,0.58912,109700.0,109690.0,1.33703922]
[1758849754652,0.58912,109700.0,109690.0,1.45035699]
[1758849755149,0.62498,109700.0,109690.0,0.58724131]
[1758849755350,0.62498,109700.0,109690.0,0.19433782]
[1758849755351,1.47496738,109700.0,109690.0,0.19433782]
[1758849755554,1.1160722,109700.0,109690.0,0.1943628]
[1758849755754,1.47496738,109700.0,109690.0,0.47392354]
[1758849755957,1.1160722,109700.0,109690.0,0.47392354]
[1758849756158,1.1160722,109700.0,109690.0,0.39646]
[1758849756355,1.1160722,109700.0,109690.0,0.38277]
[1758849756657,1.1160722,109700.0,109690.0,0.39646]
[1758849756658,1.47496738,109700.0,109690.0,0.39646]
[1758849757151,1.1160722,109700.0,109690.0,0.39646]
[1758849758082,0.1167322,109700.0,109690.0,0.75535518]
[1758849758251,0.9958122,109700.0,109690.0,0.84651703]
[1758849759759,1.0090322,109700.0,109690.0,0.48762185]
[1758849760058,0.9958122,109700.0,109690.0,0.48762185]
[1758849762454,0.9958122,109700.0,109690.0,0.56886111]
[1758849764153,0.9958122,109700.0,109690.0,0.92775629]
[1758849764358,0.9958122,109700.0,109690.0,1.01885679]
[1758849765064,0.9936122,109700.0,109690.0,1.01885679]
[1758849765368,0.87952,109700.0,109690.0,1.01885679]
[1758849765866,0.87932,109700.0,109690.0,1.01885679]
[1758849766385,0.87968,109700.0,109690.0,1.01885679]
[1758849768083,0.90232,109700.0,109690.0,0.65996161]
[1758849768282,0.90232,109700.0,109690.0,1.01885679]
[1758849768483,0.9934122,109700.0,109690.0,0.65996161]
[1758849768673,0.9934122,109700.0,109690.0,1.01885679]
[1758849768878,0.90232,109700.0,109690.0,1.01885679]
[1758849769781,0.90232,109700.0,109690.0,0.65996161]
[1758849769969,0.90232,109700.0,109690.0,1.01885679]
[1758849770675,0.90232,109700.0,109690.0,0.92914616]
[1758849772674,0.90232,109700.0,109690.0,0.8479069]
[1758849778390,0.90232,109700.0,109690.0,1.11709145]
[1758849778579,0.90232,109700.0,109690.0,0.8479069]
[1758849780193,0.9934119,109700.0,109690.0,0.8479069]
[1758849780691,0.90232,109700.0,109690.0,0.92909964]
[1758849781288,0.90232,109700.0,109690.0,0.8479069]
[1758849781488,0.003,109700.0,109690.0,2.83300161]
[1758849781683,0.02116,109730.0,109720.0,0.1266653]
[1758849781882,0.02116,109730.0,109720.0,0.74617692]
[1758849782284,0.89504,109730.0,109720.0,0.83733877]
[1758849782485,0.89504,109730.0,109720.0,1.19813877]
[1758849783079,0.89504,109730.0,109720.0,1.11699625]
[1758849783280,0.89504,109730.0,109720.0,1.1980317]
[1758849783891,0.90204,109730.0,109720.0,1.20705691]
[1758849784687,1.67726155,109730.0,109720.0,0.73369]
[1758849785382,1.67726155,109730.0,109720.0,0.65265455]
[1758849785592,0.0910753,109720.0,109710.0,0.47668545]
[1758849785894,0.39585985,109720.0,109710.0,0.73295]
[1758849786099,0.39585985,109720.0,109710.0,0.46376545]
[1758849786291,0.39585985,109720.0,109710.0,0.73295]
[1758849786695,0.39585985,109720.0,109710.0,0.44183545]
[1758849786889,0.1137136,109710.0,109700.0,0.38507]
[1758849787092,1.26966815,109710.0,109700.0,0.37215]
[1758849787397,1.27874085,109710.0,109700.0,0.37215]
[1758849787590,1.27874085,109710.0,109700.0,0.29111455]
[1758849787898,1.26966815,109710.0,109700.0,0.29111455]
[1758849788098,1.0004836,109710.0,109700.0,0.664841]
[1758849788287,1.0004836,109710.0,109700.0,0.665841]
[1758849788485,0.9875136,109710.0,109700.0,0.665841]
[1758849788692,0.9875136,109710.0,109700.0,0.666841]
[1758849789089,0.02263,109710.0,109700.0,0.666841]
[1758849789294,0.9874736,109710.0,109700.0,0.666841]
[1758849789699,0.9874736,109710.0,109700.0,0.665841]
[1758849789900,0.9984736,109710.0,109700.0,0.665841]
[1758849790397,0.9984736,109710.0,109700.0,0.664841]
[1758849790592,1.0004736,109710.0,109700.0,0.664841]
[1758849792095,1.0004736,109710.0,109700.0,0.1264719]
[1758849792310,1.0004736,109710.0,109700.0,0.664841]
[1758849793301,0.013,109710.0,109700.0,1.11679454]
[1758849793503,0.013,109710.0,109700.0,1.86701454]
[1758849793801,0.013,109710.0,109700.0,1.89929686]
[1758849794193,0.013,109710.0,109700.0,1.51679454]
[1758849794901,0.57195,109720.0,109710.0,0.1264636]
[1758849795202,0.57195,109720.0,109710.0,0.83737097]
[1758849795499,0.57195,109720.0,109710.0,0.9285162]
[1758849795703,0.1137053,109720.0,109710.0,0.8374326]
[1758849795900,0.9874253,109720.0,109710.0,0.56824805]
[1758849796101,0.9874253,109720.0,109710.0,0.4766326]
[1758849796298,1.26957985,109720.0,109710.0,0.29111455]
[1758849796504,0.1266836,109710.0,109700.0,0.74628737]
[1758849796902,0.1266836,109710.0,109700.0,0.8374326]
[1758849797303,0.02263,109710.0,109700.0,1.19770905]
[1758849798403,0.02763,109710.0,109700.0,1.19770905]
[1758849799103,0.02763,109710.0,109700.0,0.65933995]
[1758849799607,0.02763,109710.0,109700.0,1.19770905]
[1758849799800,0.1266836,109710.0,109700.0,0.20744805]
[1758849799999,0.40686815,109710.0,109690.0,0.55570029]
[1758849800298,0.40886815,109710.0,109700.0,0.26918455]
[1758849800507,0.1266919,109700.0,109690.0,0.82399091]
[1758849800802,0.1266919,109700.0,109690.0,0.73283737]
[1758849801008,0.1266919,109700.0,109690.0,0.74628737]
[1758849801304,0.1266919,109700.0,109690.0,0.73283737]
[1758849801500,0.39587645,109700.0,109690.0,0.46365282]
[1758849801695,0.1266919,109700.0,109690.0,0.65191455]
[1758849801905,0.39587645,109700.0,109690.0,0.65191455]
[1758849802497,0.1266919,109700.0,109690.0,0.65191455]
[1758849802705,0.1266919,109700.0,109690.0,0.38273]
[1758849803207,0.1267003,109690.0,109680.0,0.44172282]
[1758849803510,0.1267003,109690.0,109680.0,0.10285282]
[1758849803511,1.0003003,109690.0,109680.0,0.10285282]
[1758849804003,1.0003003,109690.0,109680.0,0.08092282]
[1758849804197,2.18177871,109690.0,109680.0,0.08092282]
[1758849804395,0.1248308,109680.0,109670.0,0.08092282]
[1758849804697,0.1238308,109680.0,109670.0,0.02266]
[1758849805807,0.4846308,109680.0,109670.0,0.02266]
[1758849806202,0.4846308,109680.0,109670.0,0.08739047]
[1758849806406,0.4846308,109680.0,109670.0,0.09339047]
[1758849806907,0.4846308,109680.0,109670.0,0.09639047]
[1758849808411,0.4846308,109680.0,109670.0,0.11021047]
[1758849808609,0.4846308,109680.0,109670.0,0.09639047]
[1758849809410,0.55926852,109680.0,109670.0,0.09639047]
[1758849809609,0.4846308,109680.0,109670.0,0.09639047]
[1758849809802,0.4846308,109680.0,109670.0,0.07373047]
[1758849810002,0.4846308,109680.0,109670.0,0.09639047]
[1758849811504,0.4846308,109680.0,109670.0,0.009]
[1758849811710,0.4846308,109680.0,109670.0,0.03166]
[1758849812303,0.4846308,109680.0,109670.0,0.09639047]
[1758849813913,0.55884562,109680.0,109670.0,0.11021047]
[1758849816013,0.55884562,109680.0,109670.0,0.04548]
[1758849816214,0.55884562,109680.0,109670.0,0.11021047]
[1758849816918,0.55884562,109680.0,109670.0,0.09639047]